fUST/lending_fUST_20251223
["ID","MTS","AMOUNT","RATE_DAILY","PERIOD"]
[399533109,1766453443922,-1362.0,9.276e-05,2]
[399533111,1766453443931,-632.0,9.276e-05,2]
[399533113,1766453443941,-2160.0,9.276e-05,2]
[399533115,1766453443950,-416.0,9.276e-05,2]
[399533116,1766453443959,-160.0,9.295e-05,3]
[399533118,1766453443968,-162.91362868,9.295e-05,5]
[399533120,1766453443978,-930.05,9.349e-05,2]
[399533122,1766453443988,-150.104,9.47e-05,2]
[399533124,1766453443997,-218.89,9.476e-05,2]
[399533126,1766453444007,-150.956,9.48e-05,2]
[399533128,1766453444016,-151.453,9.48e-05,2]
[399533130,1766453444025,-184.357,9.48e-05,2]
[399533132,1766453444034,-3964.84518168,9.5e-05,2]
[399533134,1766453444044,-2044.95302471,9.527e-05,2]
[399533136,1766453444053,-609.37596482,9.609e-05,2]
[399533138,1766453444063,-930.05,9.623e-05,2]
[399533140,1766453444072,-3751.0321691,9.709e-05,2]
[399533142,1766453444082,-247.37418978,9.715e-05,2]
[399533144,1766453444091,-1517.1826965,9.74e-05,2]
[399533146,1766453444101,-2876.18991768,9.748e-05,2]
[399533148,1766453444110,-612.84916586,9.748e-05,2]
[399533150,1766453444120,-720.0,9.749e-05,2]
[399533152,1766453444129,-250.0,9.8e-05,2]
[399533154,1766453444139,-291.86,9.888e-05,2]
[399533156,1766453444148,-930.05,9.897e-05,2]
[399533158,1766453444157,-836.9684086,9.953e-05,2]
[399533160,1766453444167,-179.4507552,9.953e-05,2]
[399533162,1766453444176,-338.529218,9.993e-05,2]
[399533164,1766453444186,-157.71,0.0001,2]
[399533166,1766453444195,-1180.01779791,0.0001,2]
[399533194,1766453444448,-12700.61937777,0.00010021,2]
[399533196,1766453444458,-158.0,0.00010146,2]
[399533198,1766453444467,-930.05,0.00010171,2]
[399533200,1766453444476,-157.71,0.000102,2]
[399533202,1766453444486,-2982.60894464,0.00010296,2]
[399533204,1766453444495,-364.82,0.000103,2]
[399533205,1766453444504,-157.71,0.000104,2]
[399533208,1766453444514,-250.0,0.00010411,2]
[399533210,1766453444523,-930.05,0.00010445,2]
[399533211,1766453444532,-437.79,0.00010712,2]
[399533214,1766453444542,-930.05,0.00010719,2]
[399533216,1766453444552,-864.0,0.00010724,2]
[399533217,1766453444562,-3092.96547559,0.00010844,2]
[399533220,1766453444571,-4049.80431622,0.00010906,2]
[399533221,1766453444580,-999.0,0.00010959,2]
[399533223,1766453444589,-500.0,0.00010959,2]
[399533225,1766453444599,-524.97181343,0.00010959,2]
[399533227,1766453444608,-500.0,0.00010959,2]
[399533229,1766453444617,-500.0,0.00010959,2]
[399533231,1766453444626,-500.0,0.00010959,2]
[399533233,1766453444635,-500.0,0.00010959,2]
[399533235,1766453444644,-500.0,0.00010959,2]
[399533237,1766453444654,-930.05,0.00010993,2]
[399533239,1766453444663,-510.75,0.00011124,2]
[399533241,1766453444672,-1041.66666667,0.00011146,2]
[399533243,1766453444682,-930.05,0.00011267,2]
[399533245,1766453444691,-674.9840527,0.00011295,9]
[399533247,1766453444700,-3207.40519818,0.00011392,2]
[399533249,1766453444708,-583.72,0.00011536,2]
[399533251,1766453444718,-930.05,0.00011541,2]
[399533253,1766453444727,-674.9840527,0.00011684,10]
[399533255,1766453444736,-285.10923568,0.00011715,2]
[399533257,1766453444745,-1000.0,0.00011797,2]
[399533259,1766453444754,-930.05,0.00011815,2]
[399533261,1766453444762,-3326.07919052,0.0001194,2]
[399533263,1766453444772,-656.68,0.00011948,2]
[399533265,1766453444781,-150.0,0.00012,2]
[399533267,1766453444790,-674.9840527,0.00012074,11]
[399533269,1766453444800,-500.0,0.00012074,2]
[399533271,1766453444810,-930.05,0.00012089,2]
[399533273,1766453444819,-500.0,0.00012208,2]
[399533275,1766453444828,-817.664,0.00012276,2]
[399533277,1766453444837,-416.0,0.00012276,2]
[399533279,1766453444846,-500.59,0.00012329,2]
[399533281,1766453444858,-561.06,0.00012329,2]
[399533283,1766453444868,-467.55,0.00012329,2]
[399533285,1766453444877,-389.62,0.00012329,2]
[399533287,1766453444886,-324.68,0.00012329,2]
[399533289,1766453444897,-270.57,0.00012329,2]
[399533291,1766453444906,-225.48,0.00012329,2]
[399533293,1766453444915,-187.9,0.00012329,2]
[399533295,1766453444927,-156.58,0.00012329,2]
[399533297,1766453444936,-782.92,0.00012329,2]
[399533299,1766453444944,-729.65,0.0001236,2]
[399533301,1766453444954,-930.05,0.00012363,2]
[399533303,1766453444963,-605.17334534,0.00012463,13]
[399533406,1766453446877,-69.81070736,0.00012463,13]
[399533407,1766453446887,-150.0,0.0001248,2]
[399533408,1766453446897,-3449.14412057,0.00012488,2]
[399533409,1766453446908,-930.05,0.00012636,2]
[399533410,1766453446917,-674.9840527,0.00012852,14]
[399533411,1766453446928,-5834.44668237,0.000129,2]
[399533412,1766453446937,-5834.44668237,0.000129,2]
[399533413,1766453446947,-930.05,0.0001291,2]
[399533414,1766453446956,-1000.0,0.00012976,2]
[399533415,1766453446965,-244.0,0.00012976,2]
[399533416,1766453446974,-349.5,0.00013,2]
[399533417,1766453446983,-7125.60518221,0.00013,2]
[399533418,1766453446992,-1704.24193003,0.00013036,2]
[399533419,1766453447002,-930.05,0.00013184,2]
[399533420,1766453447012,-674.9840527,0.00013241,16]
[399533421,1766453447022,-190.87517973,0.00013273,2]
[399533422,1766453447034,-309.12482027,0.00013273,2]
[399533423,1766453447044,-408.81205583,0.00013273,2]
[399533425,1766453488033,591.1,0.0001,10]
[399533429,1766454146242,-189.32272153,0.00011814,4]
[399533431,1766454194991,-150.0,8.286e-05,2]
[399533432,1766454216427,-150.0,8.286e-05,2]
[399533433,1766454238660,-150.0,8.286e-05,2]
[399533449,1766454632515,-401.15789213,8.286e-05,2]
[399533450,1766454632559,-323.6649928,8.286e-05,2]
[399533451,1766454632570,-630.98282538,8.286e-05,2]
[399533452,1766454632579,-205.79646653,8.31e-05,2]
[399533453,1766454632589,-246.46337723,8.383e-05,2]
[399533454,1766454632605,-600.0,8.553e-05,2]
[399533455,1766454632613,-150.0,8.671e-05,2]
[399533456,1766454632622,-150.0,9.108e-05,2]
[399533457,1766454632635,-246.46337723,9.277e-05,2]
[399533458,1766454632645,-720.0,9.408e-05,2]
[399533459,1766454632654,-300.0,9.502e-05,2]
[399533460,1766454632663,-553.64373807,9.503e-05,2]
[399533461,1766454632672,-12700.61937777,9.503e-05,2]
[399533462,1766454632681,-309.98497316,9.503e-05,2]
[399533463,1766454632690,-2674.60743027,9.503e-05,2]
[399533464,1766454632699,-213.17,9.518e-05,2]
[399533465,1766454632708,-633.917,9.794e-05,2]
[399533466,1766454632717,-2160.0,9.794e-05,2]
[399533467,1766454632726,-1366.344,9.794e-05,2]
[399533468,1766454632735,-284.22,9.932e-05,2]
[399533469,1766454632744,-158.05,0.0001,2]
[399533470,1766454632754,-300.0,0.0001,2]
[399533471,1766454632763,-150.0,0.0001,2]
[399533472,1766454632772,-633.33398416,0.00010051,2]
[399533473,1766454632781,-2773.56790519,0.00010051,2]
[399533474,1766454632790,-246.46337723,0.00010172,2]
[399533475,1766454632800,-158.05,0.000102,2]
[399533476,1766454632809,-242.8398305,0.0001031,2]
[399533477,1766454632818,-355.28,0.00010346,2]
[399533478,1766454632828,-864.0,0.00010349,2]
[399533479,1766454632837,-158.05,0.000104,2]
[399533480,1766454632846,-285.0,0.00010452,2]
[399533481,1766454632855,-2876.18991768,0.00010599,2]
[399533482,1766454632864,-426.33,0.0001076,2]
[399533483,1766454632873,-420.54041081,0.00010959,2]
[399533521,1766454638713,-79.45958919,0.00010959,2]
[399533522,1766454638723,-467.4802694,0.00010959,2]
[399533523,1766454638733,-500.0,0.00010959,2]
[399533524,1766454638743,-500.0,0.00010959,2]
[399533525,1766454638753,-500.0,0.00010959,2]
[399533526,1766454638762,-500.0,0.00010959,2]
[399533527,1766454638773,-557.49154403,0.00010959,2]
[399533528,1766454638782,-262.08111993,0.00010959,2]
[399533529,1766454638792,-299.52127992,0.00010959,2]
[399533530,1766454638801,-246.46337723,0.00011066,2]
[399533531,1766454638811,-1041.66666667,0.00011079,2]
[399533532,1766454638820,-2982.60894464,0.00011147,2]
[399533533,1766454638830,-497.39,0.00011174,2]
[399533534,1766454638839,-528.93017374,0.00011223,2]
[399533535,1766454638849,-467.53399787,0.00011307,2]
[399533536,1766454638858,-1000.0,0.00011384,2]
[399533537,1766454638868,-370.53777745,0.00011429,2]
[399533538,1766454638878,-500.0,0.00011429,2]
[399533539,1766454638887,-568.44,0.00011588,2]
[399533540,1766454638897,-3092.96547559,0.00011695,2]
[399533541,1766454638907,-246.70984061,0.0001196,2]
[399533542,1766454638916,-639.5,0.00012001,2]
[399533543,1766454638926,-500.0,0.00012208,2]
[399533544,1766454638939,-3207.40519818,0.00012243,2]
[399533545,1766454638948,-279.88319448,0.0001231,2]
[399533546,1766454638958,-646.84,0.00012329,2]
[399533547,1766454638967,-451.69830493,0.00012329,2]
[399533548,1766454638979,-87.34169507,0.00012329,2]
[399533549,1766454638988,-449.2,0.00012329,2]
[399533550,1766454638998,-374.33,0.00012329,2]
[399533551,1766454639007,-311.94,0.00012329,2]
[399533552,1766454639017,-259.95,0.00012329,2]
[399533553,1766454639026,-216.63,0.00012329,2]
[399533554,1766454639036,-180.52,0.00012329,2]
[399533555,1766454639045,-150.43,0.00012329,2]
[399533556,1766454639055,-638.63830493,0.00012329,2]
[399533557,1766454639094,-113.56169507,0.00012329,2]
[399533558,1766454639103,-710.55,0.00012415,2]
[399533559,1766454639113,-146.95829527,0.00012417,2]
[399533583,1766454641106,-353.04170473,0.00012417,2]
[399533584,1766454641115,-5252.7847423,0.00012486,2]
[399533585,1766454641125,-1000.0,0.00012522,2]
[399533586,1766454641135,-244.0,0.00012522,2]
[399533587,1766454641145,-651.47176025,0.00012791,2]
[399533588,1766454641155,-823.958,0.00012794,2]
[399533589,1766454641164,-542.23,0.000128,2]
[399533590,1766454641174,-775.0,0.000129,2]
[399533591,1766454641187,-4384.85220781,0.000129,2]
[399533592,1766454641197,-2044.9530247,0.00012938,2]
[399533593,1766454641206,-1182.38346571,0.00013008,2]
[399533594,1766454641215,-500.0,0.00013273,2]
[399533595,1766454641228,-500.0,0.00013273,2]
[399533596,1766454641237,-500.6929055,0.00013273,2]
[399533597,1766454641247,-500.0,0.00013273,2]
[399533598,1766454641256,-500.0,0.00013273,2]
[399533599,1766454641266,-282.95401981,0.00013273,2]
[399533600,1766454641275,-500.0,0.00013273,2]
[399533601,1766454641284,-501.06962281,0.00013273,2]
[399533602,1766454641296,-500.0,0.00013273,2]
[399533603,1766454641305,-161.60876168,0.00013273,2]
[399533604,1766454641314,-630.93964561,0.00013273,2]
[399533605,1766454641323,-500.0,0.00013273,2]
[399533606,1766454641333,-500.0,0.00013273,2]
[399533607,1766454641342,-500.0,0.00013273,2]
[399533608,1766454641351,-500.0,0.00013273,2]
[399533609,1766454641360,-500.0,0.00013273,2]
[399533610,1766454641370,-501.28426921,0.00013273,2]
[399533611,1766454641379,-500.0,0.00013273,2]
[399533612,1766454641389,-500.0,0.00013273,2]
[399533613,1766454641398,-500.31582787,0.00013273,2]
[399533614,1766454641407,-500.0,0.00013273,2]
[399533615,1766454641416,-500.0,0.00013273,2]
[399533616,1766454641426,-500.0,0.00013273,2]
[399533617,1766454641436,-500.0,0.00013273,2]
[399533618,1766454641446,-216.74204567,0.00013273,2]
[399533619,1766454641456,-500.0,0.00013273,2]
[399533620,1766454641465,-500.0,0.00013273,2]
[399533621,1766454641475,-500.7718983,0.00013273,2]
[399533622,1766454641484,-305.36026633,0.00013273,2]
[399533623,1766454641494,-263.81861879,0.00013273,2]
[399533624,1766454641507,-500.0,0.00013273,2]
[399533625,1766454641516,-500.0,0.00013273,2]
[399533626,1766454641525,-500.0,0.00013273,2]
[399533627,1766454641535,-165.29182647,0.00013273,2]
[399533628,1766454641544,-649.82722368,0.00013273,2]
[399533629,1766454641553,-500.0,0.00013273,2]
[399533630,1766454641562,-500.0,0.00013273,2]
[399533631,1766454641572,-500.0,0.00013273,2]
[399533632,1766454641582,-500.0,0.00013273,2]
[399533633,1766454641591,-190.87195412,0.00013273,2]
[399533634,1766454641600,-500.15552923,0.00013273,2]
[399533635,1766454641609,-500.70877639,0.00013273,2]
[399533636,1766454641619,-500.0,0.00013273,2]
[399533637,1766454641628,-500.0,0.00013273,2]
[399533638,1766454641638,-500.0,0.00013273,2]
[399533639,1766454641647,-500.0,0.00013273,2]
[399533640,1766454641656,-159.09532488,0.00013273,2]
[399533641,1766454641665,-500.0,0.00013273,2]
[399533642,1766454641675,-500.0,0.00013273,2]
[399533643,1766454641684,-500.0,0.00013273,2]
[399533644,1766454641695,-500.29692989,0.00013273,2]
[399533645,1766454641705,-500.0,0.00013273,2]
[399533646,1766454641714,-500.0,0.00013273,2]
[399533647,1766454641724,-500.0,0.00013273,2]
[399533648,1766454641734,-500.0,0.00013273,2]
[399533649,1766454641744,-325.96554229,0.00013273,2]
[399533650,1766454641753,-204.78562909,0.00013273,2]
[399533651,1766454641762,-500.0,0.00013273,2]
[399533652,1766454641771,-500.0,0.00013273,2]
[399533653,1766454641780,-500.0,0.00013273,2]
[399533654,1766454641789,-500.0,0.00013273,2]
[399533655,1766454641798,-500.0,0.00013273,2]
[399533656,1766454641807,-264.67217646,0.00013273,2]
[399533657,1766454641816,-268.32536431,0.00013273,2]
[399533658,1766454641825,-500.0,0.00013273,2]
[399533659,1766454641835,-500.0,0.00013273,2]
[399533660,1766454641844,-501.27461368,0.00013273,2]
[399533661,1766454641853,-500.0,0.00013273,2]
[399533662,1766454641862,-500.4853188,0.00013273,2]
[399533663,1766454641871,-500.0,0.00013273,2]
[399533664,1766454641881,-500.5729262,0.00013273,2]
[399533665,1766454641890,-185.17689031,0.00013273,2]
[399533666,1766454641899,-500.0,0.00013273,2]
[399533667,1766454641908,-500.0,0.00013273,2]
[399533668,1766454641917,-500.0,0.00013273,2]
[399533669,1766454641927,-209.47,0.00013273,2]
[399533670,1766454641936,-4384.85220779,0.00013484,2]
[399533671,1766454641946,-209.47,0.00013547,2]
[399533672,1766454641955,-161.29005388,0.00013563,5]
[399533673,1766454641964,-160.0,0.00013563,3]
[399533674,1766454641973,-162.91362868,0.00013563,5]
[399533675,1766454641983,-338.2114975,0.00013571,2]
[399533676,1766454641992,-300.0,0.00013673,2]
[399533677,1766454642001,-10000.0,0.00013696,2]
[399533678,1766454642010,-151.98371001,0.00013698,2]
[399533679,1766454642019,-1843.91,0.00013698,2]
[399533680,1766454642028,-1843.91,0.00013698,2]
[399533681,1766454642038,-1843.91,0.00013698,2]
[399533682,1766454642047,-1843.91,0.00013698,2]
[399533683,1766454642056,-1843.91,0.00013698,2]
[399533684,1766454642065,-1843.91,0.00013698,2]
[399533685,1766454642075,-1843.91,0.00013698,2]
[399533686,1766454642084,-1843.91,0.00013698,2]
[399533687,1766454642093,-1843.91,0.00013698,2]
[399533688,1766454642102,-1843.91,0.00013698,2]
[399533689,1766454642111,-1843.91,0.00013698,2]
[399533690,1766454642120,-1843.91,0.00013698,2]
[399533691,1766454642129,-1843.91,0.00013698,2]
[399533692,1766454642138,-1843.91,0.00013698,2]
[399533693,1766454642148,-1843.91,0.00013698,2]
[399533694,1766454642157,-1843.91,0.00013698,2]
[399533695,1766454642169,-1843.91,0.00013698,2]
[399533696,1766454642178,-1843.91,0.00013698,2]
[399533697,1766454642188,-1843.91,0.00013698,2]
[399533698,1766454642198,-1843.91,0.00013698,2]
[399533699,1766454642207,-1843.91,0.00013698,2]
[399533700,1766454642221,-1843.91,0.00013698,2]
[399533701,1766454642231,-1843.91,0.00013698,2]
[399533702,1766454642241,-1844.02391852,0.00013698,2]
[399533703,1766454642251,-500.0,0.00013698,2]
[399533704,1766454642261,-500.0,0.00013698,2]
[399533705,1766454642271,-606.59238288,0.00013698,2]
[399533706,1766454642281,-500.0,0.00013698,2]
[399533707,1766454642290,-500.0,0.00013698,2]
[399533708,1766454642301,-500.0,0.00013698,2]
[399533709,1766454642310,-500.0,0.00013698,2]
[399533710,1766454642321,-500.0,0.00013698,2]
[399533711,1766454642330,-500.0,0.00013698,2]
[399533712,1766454642340,-500.0,0.00013698,2]
[399533713,1766454642350,-500.0,0.00013698,2]
[399533714,1766454642359,-500.0,0.00013698,2]
[399533715,1766454642368,-500.0,0.00013698,2]
[399533716,1766454642378,-500.0,0.00013698,2]
[399533717,1766454642387,-500.0,0.00013698,2]
[399533718,1766454642397,-500.0,0.00013698,2]
[399533719,1766454642406,-500.0,0.00013698,2]
[399533720,1766454642415,-500.0,0.00013698,2]
[399533721,1766454642425,-227.96462324,0.00013698,2]
[399533722,1766454642434,-703.53,0.00013698,2]
[399533723,1766454642443,-703.53,0.00013698,2]
[399533724,1766454642453,-703.53,0.00013698,2]
[399533725,1766454642463,-703.53,0.00013698,2]
[399533726,1766454642472,-703.53,0.00013698,2]
[399533727,1766454642481,-500.0,0.00013698,2]
[399533728,1766454642491,-703.53,0.00013698,2]
[399533729,1766454642500,-504.9909024,0.00013698,2]
[399533730,1766454642511,-703.53,0.00013698,2]
[399533731,1766454642520,-703.53,0.00013698,2]
[399533732,1766454642530,-703.53,0.00013698,2]
[399533733,1766454642539,-703.53,0.00013698,2]
[399533734,1766454642549,-703.53,0.00013698,2]
[399533735,1766454642559,-703.53,0.00013698,2]
[399533736,1766454642568,-703.53,0.00013698,2]
[399533737,1766454642578,-703.53,0.00013698,2]
[399533738,1766454642587,-703.53,0.00013698,2]
[399533739,1766454642596,-703.53,0.00013698,2]
[399533740,1766454642605,-703.53,0.00013698,2]
[399533741,1766454642615,-703.53,0.00013698,2]
[399533742,1766454642624,-703.53,0.00013698,2]
[399533743,1766454642633,-703.53,0.00013698,2]
[399533744,1766454642642,-703.53,0.00013698,2]
[399533745,1766454642651,-703.53,0.00013698,2]
[399533746,1766454642661,-703.53,0.00013698,2]
[399533747,1766454642671,-703.7369749,0.00013698,2]
[399533748,1766454642680,-500.0,0.00013698,2]
[399533749,1766454642689,-500.0,0.00013698,2]
[399533750,1766454642698,-500.0,0.00013698,2]
[399533751,1766454642708,-500.0,0.00013698,2]
[399533752,1766454642717,-500.0,0.00013698,2]
[399533753,1766454642727,-500.0,0.00013698,2]
[399533754,1766454642737,-500.0,0.00013698,2]
[399533755,1766454642746,-500.0,0.00013698,2]
[399533756,1766454642755,-500.0,0.00013698,2]
[399533757,1766454642765,-500.0,0.00013698,2]
[399533758,1766454642774,-500.0,0.00013698,2]
[399533759,1766454642783,-500.0,0.00013698,2]
[399533760,1766454642793,-500.0,0.00013698,2]
[399533761,1766454642802,-500.0,0.00013698,2]
[399533762,1766454642812,-500.0,0.00013698,2]
[399533763,1766454642821,-500.0,0.00013698,2]
[399533764,1766454642831,-500.0,0.00013698,2]
[399533765,1766454642840,-500.0,0.00013698,2]
[399533766,1766454642849,-500.0,0.00013698,2]
[399533767,1766454642858,-505.90862811,0.00013698,2]
[399533768,1766454642867,-17339.6915933,0.00013699,2]
[399533769,1766454642876,-60573.5611178,0.00013699,2]
[399533770,1766454642885,-1500.0,0.00013699,2]
[399533771,1766454642894,-1000.0,0.00013699,2]
[399533772,1766454642903,-12523.6710477,0.00013699,2]
[399533773,1766454642912,-1693.46462,0.00013699,2]
[399533774,1766454642922,-500.7727493,0.00013699,2]
[399533775,1766454642931,-250.94554219,0.00013699,2]
[399533776,1766454642940,-500.56730014,0.00013699,2]
[399533777,1766454642949,-500.45512626,0.00013699,2]
[399533778,1766454642959,-158.3291846,0.00013699,2]
[399533779,1766454642968,-501.07636486,0.00013699,2]
[399533780,1766454642977,-502.33019288,0.00013699,2]
[399533781,1766454642986,-500.94138657,0.00013699,2]
[399533782,1766454642995,-501.21348124,0.00013699,2]
[399533783,1766454643003,-500.0,0.00013699,2]
[399533784,1766454643013,-500.82675583,0.00013699,2]
[399533785,1766454643022,-501.88510739,0.00013699,2]
[399533786,1766454643031,-500.0,0.00013699,2]
[399533787,1766454643040,-500.78706978,0.00013699,2]
[399533788,1766454643049,-500.59130128,0.00013699,2]
[399533789,1766454643059,-500.39826125,0.00013699,2]
[399533790,1766454643068,-500.97871507,0.00013699,2]
[399533791,1766454643077,-249.4724421,0.00013699,2]
[399533792,1766454643086,-500.62658863,0.00013699,2]
[399533793,1766454643096,-480.06428994,0.00013699,2]
[399533794,1766454643105,-502.36097637,0.00013699,2]
[399533795,1766454643114,-437.36615758,0.00013699,2]
[399533796,1766454643123,-500.35646321,0.00013699,2]
[399533797,1766454643131,-508.68630552,0.00013699,2]
[399533798,1766454643141,-501.0854714,0.00013699,2]
[399533799,1766454643150,-500.68583439,0.00013699,2]
[399533800,1766454643159,-500.4981784,0.00013699,2]
[399533801,1766454643168,-500.35791213,0.00013699,2]
[399533802,1766454643177,-159.5522955,0.00013699,2]
[399533803,1766454643186,-500.74623351,0.00013699,2]
[399533804,1766454643195,-500.39122245,0.00013699,2]
[399533805,1766454643204,-500.0,0.00013699,2]
[399533806,1766454643213,-506.18240686,0.00013699,2]
[399533807,1766454643227,-500.41173331,0.00013699,2]
[399533808,1766454643235,-500.90647641,0.00013699,2]
[399533809,1766454643244,-500.0,0.00013699,2]
[399533810,1766454643254,-504.25060571,0.00013699,2]
[399533811,1766454643263,-500.92970245,0.00013699,2]
[399533812,1766454643272,-500.46379578,0.00013699,2]
[399533813,1766454643281,-500.73488194,0.00013699,2]
[399533814,1766454643290,-500.95354785,0.00013699,2]
[399533815,1766454643300,-218.26818288,0.00013699,2]
[399533816,1766454643310,-151.0,0.00013699,2]
[399533817,1766454643320,-326.52639,0.00013699,2]
[399533818,1766454643329,-151.0,0.00013699,2]
[399533819,1766454643338,-326.52639,0.00013699,2]
[399533821,1766454643348,-326.52639,0.00013699,2]
[399533823,1766454643357,-326.52639,0.00013699,2]
[399533825,1766454643366,-151.0,0.00013699,2]
[399533827,1766454643376,-151.0,0.00013699,2]
[399533828,1766454643385,-151.0,0.00013699,2]
[399533829,1766454643395,-151.0,0.00013699,2]
[399533830,1766454643404,-151.0,0.00013699,2]
[399533831,1766454643413,-151.0,0.00013699,2]
[399533832,1766454643423,-230.165869,0.00013699,2]
[399533833,1766454643432,-151.0,0.00013699,2]
[399533834,1766454643441,-151.0,0.00013699,2]
[399533835,1766454643451,-151.0,0.00013699,2]
[399533836,1766454643460,-167.522437,0.00013699,2]
[399533837,1766454643469,-151.0,0.00013699,2]
[399533838,1766454643479,-151.0,0.00013699,2]
[399533839,1766454643488,-151.0,0.00013699,2]
[399533840,1766454643497,-151.0,0.00013699,2]
[399533841,1766454643506,-151.0,0.00013699,2]
[399533842,1766454643516,-151.0,0.00013699,2]
[399533843,1766454643525,-151.0,0.00013699,2]
[399533844,1766454643534,-298.904405,0.00013699,2]
[399533845,1766454643543,-291.065921,0.00013699,2]
[399533846,1766454643553,-291.065921,0.00013699,2]
[399533847,1766454643562,-291.065921,0.00013699,2]
[399533848,1766454643571,-291.065921,0.00013699,2]
[399533849,1766454643580,-151.0,0.00013699,2]
[399533850,1766454643589,-151.0,0.00013699,2]
[399533851,1766454643598,-151.0,0.00013699,2]
[399533852,1766454643607,-1599.66797,0.00013699,2]
[399533853,1766454643617,-1599.66797,0.00013699,2]
[399533854,1766454643626,-1599.66797,0.00013699,2]
[399533855,1766454643635,-1599.66797,0.00013699,2]
[399533856,1766454643645,-151.32597,0.00013699,2]
[399533857,1766454643654,-151.32597,0.00013699,2]
[399533858,1766454643663,-151.32597,0.00013699,2]
[399533859,1766454643672,-151.32597,0.00013699,2]
[399533860,1766454643682,-827.112169,0.00013699,2]
[399533861,1766454643691,-827.112169,0.00013699,2]
[399533862,1766454643701,-827.112169,0.00013699,2]
[399533863,1766454643710,-151.0,0.00013699,2]
[399533864,1766454643720,-827.112169,0.00013699,2]
[399533865,1766454643729,-166.255024,0.00013699,2]
[399533866,1766454643738,-151.0,0.00013699,2]
[399533867,1766454643748,-151.0,0.00013699,2]
[399533868,1766454643757,-151.0,0.00013699,2]
[399533869,1766454643766,-151.0,0.00013699,2]
[399533870,1766454643775,-151.0,0.00013699,2]
[399533871,1766454643784,-151.0,0.00013699,2]
[399533872,1766454643793,-151.0,0.00013699,2]
[399533873,1766454643802,-258.233301,0.00013699,2]
[399533874,1766454643811,-160.0,0.00013699,2]
[399533875,1766454643820,-1000.0,0.00013774,2]
[399533876,1766454643830,-492.0,0.00013774,2]
[399533877,1766454643840,-500.332412,0.00013821,2]
[399533878,1766454643849,-500.38056819,0.00013821,2]
[399533879,1766454643858,-434.84068307,0.00013821,2]
[399533880,1766454643867,-448.85124997,0.00013821,2]
[399533881,1766454643876,-500.7190828,0.00013821,2]
[399533882,1766454643885,-500.67156061,0.00013821,2]
[399533883,1766454643895,-501.1368355,0.00013821,2]
[399533884,1766454643904,-500.86501639,0.00013821,2]
[399533885,1766454643913,-501.46269044,0.00013821,2]
[399533886,1766454643922,-500.52486202,0.00013821,2]
[399533887,1766454643931,-500.0,0.00013821,2]
[399533888,1766454643940,-501.08668785,0.00013821,2]
[399533889,1766454643950,-500.23253354,0.00013821,2]
[399533890,1766454643959,-500.0,0.00013821,2]
[399533891,1766454643969,-500.88768635,0.00013821,2]
[399533892,1766454643978,-500.0,0.00013821,2]
[399533893,1766454643987,-500.84321967,0.00013821,2]
[399533894,1766454643996,-1002.62022038,0.00013821,2]
[399533895,1766454644006,-503.70674958,0.00013821,2]
[399533896,1766454644017,-500.67537439,0.00013821,2]
[399533897,1766454644027,-1001.61943093,0.00013821,2]
[399533898,1766454644037,-1000.82073392,0.00013821,2]
[399533899,1766454644047,-500.0,0.00013821,2]
[399533900,1766454644056,-1000.5423455,0.00013821,2]
[399533901,1766454644065,-1000.0,0.00013821,2]
[399533902,1766454644076,-500.69876996,0.00013821,2]
[399533903,1766454644086,-519.38676212,0.00013821,2]